fUST/lending_fUST_20250826
["ID","MTS","AMOUNT","RATE_DAILY","PERIOD"]
[381354813,1756148562410,471.11263364,0.00021627,2]
[381354814,1756148562521,471.11263364,0.00023353,2]
[381354815,1756148562650,471.11263364,0.0002508,2]
[381354816,1756148562750,471.11263364,0.00026806,6]
[381354817,1756148562866,471.11263364,0.00028533,10]
[381354818,1756148603186,-471.11263364,0.00030259,13]
[381354819,1756148661812,392.536943,0.00024715,2]
[381354820,1756148662188,306.38878333,0.0002497,2]
[381354821,1756148663376,-471.11263364,0.00031986,17]
[381354822,1756148718381,-471.11263364,0.00033712,21]
[381354823,1756148753871,477.1249173,0.000199,2]
[381354824,1756148753976,477.12491718,0.00021627,2]
[381354825,1756148754113,477.12491718,0.00023353,2]
[381354826,1756148754229,477.12491718,0.0002508,2]
[381354827,1756148754339,477.12491718,0.00026806,6]
[381354828,1756148754454,477.12491718,0.00028533,10]
[381354829,1756148754561,477.12491718,0.00030259,13]
[381354830,1756148754693,477.12491718,0.00031986,17]
[381354831,1756148754863,477.12491718,0.00033712,21]
[381354832,1756148852124,-298.2203564,0.00034691,2]
[381354833,1756148852144,-685.62995196,0.0003489,2]
[381354834,1756148852164,-516.1323917,0.00035,7]
[381354835,1756148882397,220.37,0.00018981,7]
[381354836,1756148936534,341.00010858,0.000199,2]
[381354837,1756148936650,341.00010843,0.00021627,2]
[381354838,1756148936769,341.00010843,0.00023353,2]
[381354839,1756148936879,341.00010843,0.0002508,2]
[381354840,1756148937029,341.00010843,0.00026806,6]
[381354841,1756148937138,341.00010843,0.00028533,10]
[381354842,1756148937478,341.00010843,0.00030259,13]
[381354843,1756148937530,341.00010843,0.00031986,17]
[381354844,1756148937614,341.00010843,0.00033712,21]
[381354846,1756149010026,-4692.51689505,0.00034405,2]
[381354847,1756149010238,-10000.01,0.00034405,2]
[381354848,1756149010421,-10000.01,0.00034405,2]
[381354849,1756149010610,-10000.01,0.00034405,2]
[381354850,1756149013061,2315.42098368,0.00031593,60]
[381354851,1756149027565,5000.0,0.00034021,2]
[381354932,1756149035421,-716.42255015,0.00034405,2]
[381354933,1756149035433,-3249.11693317,0.00034405,2]
[381354934,1756149035444,-9650.60605853,0.00034405,2]
[381354935,1756149035499,-956.23404994,0.00034405,2]
[381354936,1756149035560,-10209.09229106,0.00034405,2]
[381354937,1756149035571,-386.37513093,0.00034405,2]
[381354941,1756149038056,-165.98207907,0.00034405,2]
[381354942,1756149038067,-186.803021,0.00034496,2]
[381354943,1756149038076,-7656.07251346,0.00035,7]
[381354944,1756149038086,-341.00010843,0.00035439,24]
[381354945,1756149038095,-200.0,0.00036,14]
[381354946,1756149038104,-747.56268748,0.00036113,2]
[381354947,1756149038114,-854.61336243,0.00036113,2]
[381354948,1756149038124,-170.0,0.0003615,120]
[381354949,1756149038133,-543.8,0.00036203,10]
[381354950,1756149038144,-500.0,0.00036204,15]
[381354951,1756149038154,-500.0,0.00036204,15]
[381354952,1756149038163,-500.0,0.00036204,15]
[381354953,1756149038172,-500.0,0.00036204,2]
[381354954,1756149038183,-245.08416597,0.00036204,7]
[381354955,1756149038193,-500.0,0.00036204,15]
[381354956,1756149038202,-500.0,0.00036204,15]
[381354957,1756149038211,-265.17478326,0.00036204,15]
[381354958,1756149038223,-500.0,0.00036204,15]
[381354959,1756149038233,-500.0,0.00036204,15]
[381354960,1756149038243,-500.0,0.00036204,2]
[381354961,1756149038253,-500.0,0.00036204,15]
[381354962,1756149038263,-500.0,0.00036204,15]
[381354963,1756149038272,-500.0,0.00036204,2]
[381354964,1756149038281,-500.0,0.00036204,15]
[381354965,1756149038291,-500.0,0.00036204,15]
[381354966,1756149038300,-500.0,0.00036204,15]
[381354967,1756149038310,-500.0,0.00036204,15]
[381354968,1756149038319,-500.0,0.00036204,15]
[381354969,1756149038328,-500.0,0.00036204,15]
[381354970,1756149038337,-500.0,0.00036204,15]
[381354971,1756149038346,-573.31296449,0.00036204,15]
[381354972,1756149038356,-500.0,0.00036204,15]
[381354973,1756149038365,-273.00768397,0.00036204,15]
[381354974,1756149038375,-572.89397562,0.00036204,15]
[381354975,1756149038386,-500.0,0.00036204,15]
[381354976,1756149038397,-500.0,0.00036204,15]
[381354977,1756149038407,-500.0,0.00036204,15]
[381354978,1756149038417,-500.0,0.00036204,15]
[381354979,1756149038429,-500.0,0.00036204,15]
[381354980,1756149038439,-500.0,0.00036204,15]
[381354981,1756149038449,-500.0,0.00036204,15]
[381354982,1756149038458,-500.0,0.00036204,15]
[381354983,1756149038468,-500.0,0.00036204,15]
[381354984,1756149038477,-462.0010148,0.00036204,2]
[381354985,1756149038486,-500.0,0.00036204,15]
[381354986,1756149038496,-500.0,0.00036204,15]
[381354987,1756149038505,-12701.40788335,0.00036205,2]
[381354988,1756149038515,-160.0,0.00036208,2]
[381354989,1756149038524,-160.0,0.00036208,2]
[381354990,1756149038533,-160.0,0.00036208,2]
[381354991,1756149038544,-160.0,0.00036208,2]
[381354992,1756149038553,-160.0,0.00036208,2]
[381354993,1756149038562,-160.0,0.00036208,2]
[381354994,1756149038572,-160.0,0.00036208,2]
[381354995,1756149038581,-216.04034502,0.00036208,2]
[381354997,1756149038590,-50000.0,0.0003621,2]
[381354999,1756149038599,-8529.13463715,0.00036213,2]
[381355001,1756149038608,-160.758,0.00036213,44]
[381355003,1756149038618,-500.0,0.00036567,15]
[381355005,1756149038628,-341.78,0.000366,7]
[381355007,1756149038638,-172.42,0.000366,7]
[381355008,1756149038646,-607.99728975,0.00036657,15]
[381355009,1756149038656,-500.0,0.00036657,15]
[381355010,1756149038665,-500.0,0.00036657,15]
[381355011,1756149038675,-500.0,0.00036657,15]
[381355012,1756149038685,-500.0,0.00036657,15]
[381355013,1756149038695,-500.0,0.00036657,15]
[381355014,1756149038705,-500.0,0.00036657,15]
[381355015,1756149038714,-500.0,0.00036657,15]
[381355016,1756149038724,-500.0,0.00036657,15]
[381355017,1756149038733,-500.0,0.00036657,15]
[381355018,1756149038742,-500.0,0.00036657,15]
[381355019,1756149038751,-166.1850109,0.00036657,15]
[381355020,1756149038761,-500.0,0.00036657,15]
[381355021,1756149038770,-500.0,0.00036657,15]
[381355022,1756149038779,-500.0,0.00036657,15]
[381355023,1756149038789,-25450.9028891,0.00036658,3]
[381355024,1756149038799,-232.4766599,0.00036659,3]
[381355025,1756149038808,-25450.9028891,0.00036659,3]
[381355026,1756149038818,-160.0,0.00036665,2]
[381355027,1756149038827,-54360.918688,0.00036669,2]
[381355028,1756149038836,-200.0,0.00036669,10]
[381355029,1756149038845,-200.0,0.00036669,10]
[381355030,1756149038855,-209.904055,0.00036669,10]
[381355031,1756149038865,-341.78,0.000367,7]
[381355032,1756149038874,-854.61336241,0.00036725,2]
[381355033,1756149038883,-652.24248923,0.00036726,2]
[381355034,1756149038893,-250.0,0.00036801,2]
[381355035,1756149038903,-249.94531811,0.00036801,2]
[381355036,1756149038912,-347.39457964,0.00036841,15]
[381355037,1756149038921,-200.0,0.00037,14]
[381355038,1756149038931,-341.00010843,0.00037166,28]
[381355039,1756149038940,-747.56268746,0.00037202,2]
[381355040,1756149038949,-360.0,0.00037213,2]
[381355041,1756149038958,-153.44423372,0.0003731,2]
[381355042,1756149038967,-1183.89,0.0003731,120]
[381355043,1756149038977,-13202.0423065,0.00037311,2]
[381355044,1756149038986,-1342.0,0.00037314,7]
[381355045,1756149038996,-232.4766599,0.00037314,7]
[381355046,1756149039005,-854.61336241,0.00037337,2]
[381355047,1756149039015,-15848.24288937,0.00037445,2]
[381355048,1756149039024,-400.25206279,0.00037545,2]
[381355049,1756149039034,-1300.0,0.00037807,7]
[381355050,1756149039043,-1342.0,0.00037874,2]
[381355051,1756149039052,-354.00818439,0.00037876,2]
[381355052,1756149039062,-854.61336241,0.00037949,2]
[381355053,1756149039071,-800.0,0.00037966,7]
[381355054,1756149039080,-200.0,0.00038,14]
[381355055,1756149039090,-800.0,0.00038007,7]
[381355056,1756149039099,-500.0,0.00038025,5]
[381355057,1756149039109,-151.0,0.00038082,7]
[381355058,1756149039118,-151.0,0.00038082,7]
[381355059,1756149039127,-491.0,0.00038082,7]
[381355060,1756149039137,-151.0,0.00038082,7]
[381355061,1756149039151,-800.0,0.00038124,7]
[381355062,1756149039160,-25450.9028891,0.00038147,3]
[381355063,1756149039170,-800.0,0.00038157,7]
[381355064,1756149039180,-800.0,0.00038168,7]
[381355065,1756149039190,-541.20699125,0.00038206,7]
[381355066,1756149039200,-747.56268746,0.00038291,2]
[381355067,1756149039209,-151.0,0.00038356,7]
[381355068,1756149039220,-151.0,0.00038356,7]
[381355069,1756149039230,-491.0,0.00038356,7]
[381355070,1756149039240,-301.999999,0.00038356,7]
[381355071,1756149039251,-500.0,0.00038356,14]
[381355072,1756149039260,-341.78,0.000384,7]
[381355073,1756149039270,-199.0,0.00038435,120]
[381355074,1756149039280,-199.0,0.00038435,120]
[381355075,1756149039290,-160.0,0.00038446,3]
[381355076,1756149039300,-173.0,0.00038535,120]
[381355077,1756149039310,-500.0,0.0003855,5]
[381355078,1756149039321,-500.0,0.0003855,5]
[381355079,1756149039331,-500.0,0.0003855,5]
[381355080,1756149039341,-854.61336241,0.00038561,2]
[381355081,1756149039351,-140.18788083,0.00038607,7]
[381355082,1756149039361,-443.0,0.00038629,2]
[381355083,1756149039370,-1300.0,0.00038629,7]
[381355084,1756149039380,-151.0,0.0003863,7]
[381355085,1756149039389,-151.0,0.0003863,7]
[381355086,1756149039400,-491.0,0.0003863,7]
[381355087,1756149039413,-424.83317708,0.0003863,14]
[381355088,1756149039422,-178156.320224,0.00038651,3]
[381355089,1756149039433,-443.0,0.00038655,2]
[381355090,1756149039442,-3501.47946713,0.0003866,61]
[381355091,1756149039450,-370000.0,0.00038661,2]
[381355092,1756149039459,-151.0,0.00038661,30]
[381355093,1756149039468,-151.0,0.00038661,30]
[381355094,1756149039478,-151.0,0.00038661,30]
[381355095,1756149039487,-151.0,0.00038661,30]
[381355096,1756149039497,-151.0,0.00038661,30]
[381355097,1756149039507,-151.0,0.00038661,30]
[381355098,1756149039515,-151.0,0.00038661,30]
[381355099,1756149039524,-151.0,0.00038661,30]
[381355100,1756149039533,-151.0,0.00038661,30]
[381355101,1756149039541,-151.0,0.00038661,30]
[381355102,1756149039550,-151.0,0.00038661,30]
[381355103,1756149039560,-500.0,0.00038673,5]
[381355104,1756149039569,-500.0,0.00038673,5]
[381355105,1756149039578,-500.0,0.00038673,5]
[381355106,1756149039588,-500.0,0.00038673,5]
[381355107,1756149039597,-500.0,0.00038673,5]
[381355108,1756149039607,-174.03375128,0.00038673,5]
[381355109,1756149039616,-500.0,0.00038673,5]
[381355110,1756149039626,-500.0,0.00038673,5]
[381355112,1756149039635,-500.0,0.00038673,5]
[381355113,1756149039644,-500.0,0.00038673,5]
[381355115,1756149039655,-500.0,0.00038673,5]
[381355117,1756149039664,-500.0,0.00038673,5]
[381355119,1756149039673,-500.0,0.00038673,5]
[381355121,1756149039683,-500.0,0.00038673,5]
[381355122,1756149039692,-500.0,0.00038673,5]
[381355124,1756149039702,-2539.54,0.000387,7]
[381355125,1756149039712,-46430.46,0.000387,14]
[381355126,1756149039721,-16047.25,0.000387,14]
[381355127,1756149039731,-376.30788339,0.00038754,2]
[381355128,1756149039740,-203.0,0.00038839,7]
[381355129,1756149039749,-844.86965257,0.00038849,2]
[381355130,1756149039758,-152.67243,0.00038854,20]
[381355131,1756149039767,-152.67243,0.00038869,2]
[381355132,1756149039776,-341.00010843,0.00038892,32]
[381355133,1756149039785,-256.48752778,0.00038904,7]
[381355134,1756149039795,-151.0,0.00038904,7]
[381355135,1756149039807,-491.0,0.00038904,7]
[381355136,1756149039817,-168.0,0.00038906,2]
[381355137,1756149039826,-152.67243,0.00038954,2]
[381355138,1756149039836,-1183.89,0.00038954,120]
[381355139,1756149039845,-515.06,0.0003898,3]
[381355140,1756149039854,-257.53,0.0003898,3]
[381355141,1756149039865,-772.63,0.0003898,3]
[381355142,1756149039874,-99999.999999,0.0003899,120]
[381355143,1756149039883,-20471.31730486,0.0003899,2]
[381355144,1756149039892,-151.0,0.0003899,30]
[381355145,1756149039904,-151.0,0.0003899,30]
[381355146,1756149039914,-151.0,0.0003899,30]
[381355147,1756149039923,-151.0,0.0003899,30]
[381355148,1756149039933,-151.0,0.0003899,30]
[381355150,1756149039942,-151.0,0.0003899,30]
[381355151,1756149039951,-151.0,0.0003899,30]
[381355152,1756149039960,-417.15472785,0.0003899,120]
[381355153,1756149039970,-151.0,0.0003899,30]
[381355154,1756149039979,-185.676148,0.0003899,30]
[381355155,1756149039989,-151.0,0.0003899,30]
[381355156,1756149040003,-169.0,0.00038995,2]
[381355157,1756149040018,-19321.39,0.00039,30]
[381355158,1756149040027,-200.0,0.00039,14]
[381355159,1756149040037,-417.15472785,0.00039,30]
[381355160,1756149040047,-168.0,0.00039012,2]
[381355161,1756149040056,-152.67243,0.00039038,2]
[381355162,1756149040065,-1000.0,0.00039098,5]
[381355163,1756149040074,-1000.0,0.00039098,5]
[381355164,1756149040083,-216.98984875,0.00039178,7]
[381355165,1756149040093,-491.0,0.00039178,7]
[381355166,1756149040317,-3322.19364867,0.00039181,2]
[381355167,1756149040328,-168.0,0.00039209,2]
[381355168,1756149040338,-15848.24288936,0.0003922,2]
[381355169,1756149040347,-507.11629469,0.00039221,5]
[381355170,1756149040357,-1000.0,0.00039221,5]
[381355171,1756149040366,-1000.0,0.00039221,5]
[381355172,1756149040375,-1000.0,0.00039221,5]
[381355173,1756149040384,-1000.0,0.00039221,5]
[381355174,1756149040394,-1000.0,0.00039221,5]
[381355175,1756149040404,-986.20982051,0.00039221,5]
[381355176,1756149040413,-747.56268746,0.0003938,2]
[381355177,1756149040422,-1300.0,0.00039451,7]
[381355178,1756149040431,-491.0,0.00039452,7]
[381355179,1756149040441,-341.78,0.000395,7]
[381355180,1756149040450,-203.0,0.00039551,120]
[381355181,1756149040458,-1500.0,0.00039646,5]
[381355182,1756149040468,-1500.0,0.00039646,5]
[381355183,1756149040477,-230.0,0.0003968,2]
[381355184,1756149040486,-230.0,0.00039693,7]
[381355185,1756149040495,-16047.25,0.000397,14]
[381355186,1756149040504,-203.0,0.0003972,2]
[381355187,1756149040513,-491.0,0.00039726,7]
[381355188,1756149040522,-168.0,0.00039727,7]
[381355189,1756149040531,-230.0,0.00039745,2]
[381355190,1756149040540,-1500.0,0.00039768,5]
[381355191,1756149040550,-647.04621466,0.00039768,5]
[381355192,1756149040559,-1500.0,0.00039768,5]
[381355193,1756149040569,-1500.0,0.00039768,5]
[381355194,1756149040578,-1500.0,0.00039768,5]
[381355195,1756149040588,-173.30378635,0.00039815,6]
[381355196,1756149040597,-199.0,0.000399,120]
[381355197,1756149040606,-2539.54,0.000399,7]
[381355198,1756149040615,-46430.46,0.000399,14]
[381355199,1756149040625,-491.0,0.0004,7]
[381355200,1756149040634,-480.0,0.0004,120]
[381355201,1756149040644,-200.0,0.0004,14]
[381355202,1756149040654,-485.78218807,0.00040008,2]
[381355203,1756149040664,-980.026,0.00040037,2]
[381355204,1756149040673,-2155.0,0.00040037,2]
[381355205,1756149040682,-639.856,0.00040037,2]
[381355206,1756149040692,-503.79895917,0.0004009,30]
[381355207,1756149040701,-160.0,0.00040137,4]
[381355208,1756149040710,-230.0,0.00040142,2]
[381355209,1756149040719,-230.0,0.00040168,2]
[381355210,1756149040729,-2000.0,0.00040194,5]
[381355211,1756149040738,-500.0,0.00040194,5]
[381355212,1756149040747,-1300.0,0.00040273,7]
[381355213,1756149040757,-491.0,0.00040274,7]
[381355214,1756149040767,-2000.0,0.00040316,5]
[381355215,1756149040777,-2000.0,0.00040316,5]
[381355216,1756149040786,-2000.0,0.00040316,5]
[381355217,1756149040796,-2042.35990858,0.00040316,5]
[381355218,1756149040806,-156.15615978,0.00040336,14]
[381355219,1756149040816,-1030.12,0.0004035,3]
[381355220,1756149040826,-515.06,0.0004035,3]
[381355221,1756149040835,-150.0,0.00040415,2]
[381355222,1756149040844,-257.299,0.00040415,2]
[381355223,1756149040853,-230.0,0.0004043,2]
[381355224,1756149040862,-173.0,0.00040462,120]
[381355225,1756149040872,-747.56268746,0.00040468,28]
[381355226,1756149040882,-491.0,0.00040548,7]
[381355227,1756149040891,-1183.89,0.00040598,120]
[381355228,1756149040900,-341.00010843,0.00040619,36]
[381355229,1756149040911,-230.0,0.00040661,7]
[381355230,1756149040921,-501.1616258,0.00040683,15]
[381355231,1756149040930,-341.78,0.000407,7]
[381355232,1756149040939,-491.0,0.00040822,7]
[381355233,1756149040948,-151.0,0.00040822,30]
[381355234,1756149040958,-151.0,0.00040864,30]
[381355235,1756149040967,-2500.0,0.00040864,5]
[381355236,1756149040976,-2500.0,0.00040864,5]
[381355237,1756149040986,-1662.05769803,0.00040864,5]
[381355238,1756149040996,-279168.77262797,0.000409,120]
[381355239,1756149041005,-151.0,0.000409,30]
[381355240,1756149041014,-151.0,0.000409,30]
[381355241,1756149041024,-151.0,0.000409,30]
[381355242,1756149041033,-1000.0,0.000409,2]
[381355243,1756149041042,-1000.0,0.000409,2]
[381355244,1756149041052,-463.661193,0.000409,2]
[381355245,1756149041063,-151.0,0.000409,30]
[381355246,1756149041072,-151.0,0.000409,30]
[381355247,1756149041081,-16047.25,0.000409,14]
[381355248,1756149041091,-151.0,0.000409,30]
[381355249,1756149041100,-200.0,0.00040974,120]
[381355250,1756149041109,-200.0,0.00040974,120]
[381355251,1756149041118,-9487.79199034,0.00040995,2]
[381355252,1756149041127,-821.98015479,0.00040995,2]
[381355253,1756149041143,-15026.26273457,0.00040995,2]
[381355254,1756149041153,-284.44985547,0.00040995,120]
[381355255,1756149041163,-1000.0,0.00040995,2]
[381355256,1756149041172,-150.0,0.00041,120]
[381355257,1756149041182,-2539.54,0.00041,7]
[381355258,1756149041192,-46430.46,0.00041,14]
[381355259,1756149041201,-967.0,0.00041,30]
[381355260,1756149041210,-232.4766599,0.00041011,2]
[381355261,1756149041220,-160.0,0.00041011,2]
[381355262,1756149041230,-160.0,0.00041011,2]
[381355263,1756149041240,-217.12848614,0.00041012,2]
[381355264,1756149041249,-177.0,0.00041033,7]
[381355265,1756149041259,-535.37730453,0.00041073,5]
[381355266,1756149041268,-500.92855203,0.00041073,5]
[381355267,1756149041278,-500.0,0.00041073,5]
[381355268,1756149041287,-509.75446269,0.00041073,5]
[381355269,1756149041297,-500.0,0.00041073,5]
[381355270,1756149041306,-249.52595729,0.00041073,2]
[381355271,1756149041316,-500.0,0.00041073,5]
[381355272,1756149041325,-500.0,0.00041073,5]
[381355273,1756149041335,-500.0,0.00041073,2]
[381355274,1756149041345,-500.0,0.00041073,5]
[381355275,1756149041354,-500.0,0.00041073,5]
[381355276,1756149041363,-500.0,0.00041073,5]
[381355277,1756149041373,-500.0,0.00041073,5]
[381355278,1756149041382,-500.0,0.00041073,5]
[381355279,1756149041391,-500.0,0.00041073,5]
[381355280,1756149041400,-500.39908462,0.00041073,5]
[381355281,1756149041414,-500.0,0.00041073,5]
[381355282,1756149041423,-500.0,0.00041073,5]
[381355283,1756149041432,-500.0,0.00041073,5]
[381355284,1756149041441,-500.0,0.00041073,5]
[381355285,1756149041451,-500.0,0.00041073,5]
[381355286,1756149041461,-500.0,0.00041073,5]
[381355287,1756149041470,-500.0,0.00041073,5]
[381355288,1756149041479,-500.0,0.00041073,5]
[381355290,1756149041488,-574.00427768,0.00041073,5]
[381355292,1756149041498,-500.0,0.00041073,5]
[381355293,1756149041508,-173.96261013,0.00041073,5]
[381355294,1756149041518,-500.0,0.00041073,5]
[381355295,1756149041527,-500.0,0.00041073,5]
[381355296,1756149041536,-500.0,0.00041073,5]
[381355297,1756149041545,-500.0,0.00041073,5]
[381355298,1756149041554,-500.0,0.00041073,5]
[381355299,1756149041563,-500.0,0.00041073,5]
[381355300,1756149041573,-500.0,0.00041073,5]
[381355301,1756149041583,-500.0,0.00041073,5]
[381355302,1756149041592,-500.0,0.00041073,5]
[381355303,1756149041602,-154.79434068,0.00041073,5]
[381355304,1756149041612,-500.0,0.00041073,5]
[381355305,1756149041622,-500.0,0.00041073,5]
[381355306,1756149041631,-423.10410092,0.00041073,5]
[381355307,1756149041640,-500.0,0.00041073,5]
[381355308,1756149041649,-502.32416053,0.00041073,5]
[381355309,1756149041660,-500.0,0.00041073,5]
[381355310,1756149041669,-500.0,0.00041073,5]
[381355311,1756149041678,-500.0,0.00041073,5]
[381355312,1756149041687,-500.0,0.00041073,5]
[381355313,1756149041696,-500.0,0.00041073,5]
[381355314,1756149041705,-500.0,0.00041073,5]
[381355315,1756149041716,-500.0,0.00041073,5]
[381355316,1756149041727,-546.65384265,0.00041084,30]
[381355317,1756149041779,-166.66474445,0.00041084,30]
[381355318,1756149041791,-105.5074129,0.00041084,30]
[381355319,1756149041801,-1000.0,0.00041094,120]
[381355320,1756149041810,-1686.49029867,0.00041095,14]
[381355321,1756149041834,-513.50970133,0.00041095,14]
[381355322,1756149041843,-480.0,0.00041095,30]
[381355323,1756149041852,-480.0,0.00041095,30]
[381355324,1756149041862,-51.68032778,0.00041095,30]
[381355325,1756149041873,-428.31967222,0.00041095,30]
[381355326,1756149041882,-480.0,0.00041095,30]
[381355327,1756149041891,-480.0,0.00041095,30]
[381355328,1756149041900,-404.852288,0.00041095,30]
[381355329,1756149041910,-480.0,0.00041095,30]
[381355330,1756149041919,-480.0,0.00041095,30]
[381355331,1756149041928,-480.0,0.00041095,30]
[381355332,1756149041937,-480.0,0.00041095,30]
[381355333,1756149041946,-826.54,0.00041095,30]
[381355334,1756149041956,-480.0,0.00041095,30]
[381355335,1756149041965,-480.0,0.00041095,30]
[381355336,1756149041974,-480.0,0.00041095,30]
[381355337,1756149041983,-480.0,0.00041095,30]
[381355338,1756149041993,-480.0,0.00041095,30]
[381355339,1756149042003,-480.0,0.00041095,30]
[381355340,1756149042012,-974.7,0.00041095,30]
[381355341,1756149042021,-774.52,0.00041095,30]
[381355342,1756149042030,-480.0,0.00041095,30]
[381355343,1756149042041,-480.0,0.00041095,30]
[381355344,1756149042050,-829.62,0.00041095,30]
[381355345,1756149042060,-666.05,0.00041095,30]
[381355346,1756149042069,-480.0,0.00041095,30]
[381355347,1756149042078,-480.0,0.00041095,30]
[381355348,1756149042087,-480.0,0.00041095,30]
[381355349,1756149042097,-510.82,0.00041095,30]
[381355350,1756149042106,-480.0,0.00041095,30]
[381355351,1756149042115,-480.0,0.00041095,30]
[381355352,1756149042126,-1377.17706093,0.00041095,30]
[381355353,1756149042139,-32.73293907,0.00041095,30]
[381355354,1756149042152,-601.43,0.00041095,30]
[381355355,1756149042163,-480.0,0.00041095,30]
[381355356,1756149042173,-646.86589128,0.00041095,30]
[381355357,1756149042184,-1955.41410872,0.00041095,30]
[381355358,1756149042194,-480.0,0.00041095,30]
[381355359,1756149042203,-480.0,0.00041095,30]
[381355360,1756149042213,-419.1920431,0.00041095,30]
[381355361,1756149042224,-480.0,0.00041095,30]
[381355362,1756149042234,-480.0,0.00041095,30]
[381355363,1756149042243,-480.0,0.00041095,30]
[381355364,1756149042252,-480.0,0.00041095,30]
[381355365,1756149042262,-480.0,0.00041095,30]
[381355366,1756149042272,-480.0,0.00041095,30]
[381355367,1756149042282,-808.75,0.00041095,30]
[381355368,1756149042292,-480.0,0.00041095,30]
[381355369,1756149042301,-581.27,0.00041095,30]
[381355370,1756149042311,-480.0,0.00041095,30]
[381355371,1756149042320,-480.0,0.00041095,30]
[381355372,1756149042330,-480.0,0.00041095,30]
[381355373,1756149042339,-960.01,0.00041095,30]
[381355374,1756149042348,-480.0,0.00041095,30]
[381355375,1756149042358,-480.0,0.00041095,30]
[381355376,1756149042367,-528.98,0.00041095,30]
[381355377,1756149042376,-1084.03346777,0.00041095,30]
[381355378,1756149042389,-158.28653223,0.00041095,30]
[381355379,1756149042399,-480.0,0.00041095,30]
[381355380,1756149042409,-480.0,0.00041095,30]
[381355381,1756149042418,-480.0,0.00041095,30]
[381355382,1756149042427,-1106.45,0.00041095,30]
[381355383,1756149042437,-867.81,0.00041095,30]
[381355384,1756149042446,-552.7,0.00041095,30]
[381355385,1756149042456,-1436.76,0.00041095,30]
[381355386,1756149042465,-480.0,0.00041095,2]
[381355387,1756149042475,-480.0,0.00041095,30]
[381355388,1756149042484,-480.0,0.00041095,30]
[381355389,1756149042493,-480.0,0.00041095,30]
[381355390,1756149042503,-933.29,0.00041095,30]
[381355391,1756149042512,-480.0,0.00041095,30]
[381355392,1756149042523,-480.0,0.00041095,30]
[381355393,1756149042533,-480.53523737,0.00041095,30]
[381355394,1756149042542,-1667.93,0.00041095,30]
[381355395,1756149042551,-977.05788502,0.00041095,30]
[381355396,1756149042564,-22.94211498,0.00041095,30]
[381355397,1756149042573,-480.58224186,0.00041095,30]
[381355399,1756149042583,-480.0,0.00041095,30]
[381355401,1756149042592,-480.0,0.00041095,30]
[381355403,1756149042602,-480.0,0.00041095,30]
[381355404,1756149042611,-480.0,0.00041095,30]
[381355405,1756149042621,-480.0,0.00041095,30]
[381355407,1756149042630,-1187.34,0.00041095,30]
[381355408,1756149042640,-8.68832145,0.00041095,30]
[381355409,1756149042651,-471.31167855,0.00041095,30]
[381355410,1756149042661,-311.20041475,0.00041095,30]
[381355411,1756149042672,-168.79958525,0.00041095,30]
[381355412,1756149042681,-480.0,0.00041095,30]
[381355413,1756149042690,-480.0,0.00041095,30]
[381355414,1756149042699,-480.0,0.00041095,30]
[381355415,1756149042709,-480.0,0.00041095,30]